Cogmind - Beta 13 @@@ ROGUE MODE // 2024.04.10 @ 11:38:20 Player: Zedx Result: Destroyed by G-47 Trooper with Particle Gun Performance ------------- Evolutions (3) 1500 Regions Visited (4) 800 Robots Destroyed (66) 330 Value Destroyed (2521) 2521 Prototype IDs (2) 40 Alien Tech Used (0) 0 Bonus (11) 11 TOTAL SCORE: 5202 Bonus ------- High Alert Combat Kills 11 Cogmind --------- Core Integrity 0/700 Matter 268/300 Energy 301/350 System Corruption 5% Temperature Cool (9) Movement Core (300) Ox5 Location -7/Factory Parts ------- > --- POWER (2) -------- (None) > --- PROPULSION (4) --- (None) > --- UTILITY (4) ------ Medium Storage Unit High-capacity Battery Improved Targeting Computer > --- WEAPON (3) ------- Shock Rifle > --- INVENTORY (10) --- Medium Storage Unit Recoil Stabilizer Medium Armor Plating Peak State ------------ > --- POWER ------------ Light Nuclear Core > --- PROPULSION ------- Titanium Leg Titanium Leg Titanium Leg > --- UTILITY ---------- Medium Storage Unit Medium Battery Small Matter Pod Hardened Medium Armor Plating > --- WEAPON ----------- Light EM Pulse Cannon Assault Cannon Flak Cannon > --- INVENTORY -------- Medium Storage Unit High-capacity Battery Recoil Stabilizer Core Shielding Medium Armor Plating Heavy Assault Rifle Advanced EMP Blaster [Rating: 27] Favorites ----------- Power Light Ion Engine Engine Light Ion Engine Power Core Light Nuclear Core Propulsion Aluminum Leg Treads Light Treads Leg Aluminum Leg Hover Unit Hover Unit Flight Unit Flight Unit Utility Medium Storage Unit Device Heat Sink Storage Medium Storage Unit Processor Improved Targeting Computer Protection Core Shielding Weapon Assault Rifle Energy Gun Particle Gun Energy Cannon Light EM Pulse Cannon Ballistic Gun Assault Rifle Ballistic Cannon Assault Cannon Launcher Grenade Launcher Build | -11 -10 -9 -8 -7 ------- Run | Yrd Mat Mat Mat Fac Slots Evolved 6 | . . 2 2 2 Power 1 | . . . 1 . Propulsion 2 | . . . . 2 Utility 2 | . . 1 1 . Weapon 1 | . . 1 . . Parts Attached 87 | 6 6 17 30 28 Power 13 | 1 1 1 5 5 Engine 7 | 1 1 1 3 1 Core 6 | . . . 2 4 Reactor . | . . . . . Propulsion 26 | 2 1 5 10 8 Treads 8 | . . 2 3 3 Leg 13 | 2 1 1 6 3 Wheel . | . . . . . Hover 1 | . . . . 1 Flight 4 | . . 2 1 1 Utility 23 | 1 2 5 8 7 Device 5 | 1 . 1 . 3 Storage 8 | . . 2 4 2 Processor 1 | . . . . 1 Hackware . | . . . . . Protection 9 | . 2 2 4 1 Artifact . | . . . . . Weapon 25 | 2 2 6 7 8 Energy Gun 6 | . 1 2 . 3 Energy Cannon 2 | . . . 1 1 Ballistic Gun 11 | 2 . 3 3 3 Ballistic Cannon 3 | . . . 3 . Launcher 3 | . 1 1 . 1 Special Weapon . | . . . . . Impact Weapon . | . . . . . Slashing Weapon . | . . . . . Piercing Weapon . | . . . . . Special Melee Weapon . | . . . . . Unidentified Prototypes 2 | . . . 1 1 Corrupted Parts 2 | . . . . 2 System Corruption 5 | . . . . 5 Parts Lost 51 | . 1 8 14 28 Power 8 | . . 1 3 4 Propulsion 16 | . 1 2 3 10 Utility 8 | . . 1 2 5 Weapon 19 | . . 4 6 9 Highest Loss Streak 7 | . 1 5 5 7 To Critical Strikes . | . . . . . Average Slot Usage (%) 82 | . 97 92 81 71 Engine 6 | . 14 9 5 2 Core 2 | . . . 3 3 Treads 6 | . . 4 7 9 Leg 10 | . 26 9 9 8 Flight 1 | . . 3 . 1 Device 5 | . 14 7 . 5 Storage 15 | . . 12 20 17 Processor 1 | . . . . 3 Protection 8 | . 13 11 13 1 Energy Gun 6 | . 7 10 1 8 Energy Cannon 1 | . . . 3 1 Ballistic Gun 9 | . 18 17 9 2 Ballistic Cannon 3 | . . . 7 3 Launcher 1 | . 2 4 . . Naked Turns . | . . . . . Heaviest Build 44 | 8 14 27 44 41 Greatest Support 60 | 20 20 44 44 60 Greatest Overweight (x) 9 | . 1 6 1 9 Average Overweight (x) . | . . 1 . . Largest Inventory Capacity 10 | 5 5 10 10 10 Average Capacity 9 | 5 5 9 10 10 Most Carried 10 | 3 5 10 10 10 Average Carried 6 | . 4 7 8 6 Final Capacity 10 | 5 5 10 10 10 Final Carried 10 | 3 5 10 8 3 Class Distribution -------------------- 36% | Tank 35% | Mutant 13% | Scavenger-Mutant 9% | Scavenger-Gunner 3% | Scavenger-Tank Dominant Class ---------------- Mutant | -10/Materials Tank | -9/Materials Mutant | -8/Materials Scavenger-Mutant | -7/Factory Resources | -11 -10 -9 -8 -7 ----------- Run | Yrd Mat Mat Mat Fac Matter Collected 1989 | 274 71 316 796 532 Remotely . | . . . . . Salvage Created 2200 | 47 171 366 771 845 Parts 117 | 5 10 24 41 37 Haulers Intercepted . | . . . . . Recyclers Shooed 1 | . . . 1 . Parts Field Recycled . | . . . . . Retrieved Matter . | . . . . . Parts Self-Destructed . | . . . . . Prevented . | . . . . . Kills | -11 -10 -9 -8 -7 ------- Run | Yrd Mat Mat Mat Fac Combat Hostiles Destroyed 58 | 1 7 12 17 21 Melee 1 | . . . 1 . Guns 34 | 1 3 11 6 13 Cannons 18 | . . . 10 8 AOE 5 | . 4 1 . . Classes Destroyed 10 | 1 3 1 3 2 Worker 3 | . . . 3 . Builder 2 | . 1 . . 1 Tunneler 1 | . . . 1 . Operator 1 | . . . . 1 Watcher 1 | . 1 . . . Swarmer 11 | . 3 6 . 2 Grunt 29 | 1 4 2 8 14 Brawler 1 | . . . . 1 Sentry 12 | . . 4 6 2 Hunter 5 | . . . 3 2 Best Kill Streak 4 | 1 4 4 3 3 Combat Bots Only 4 | 1 3 4 3 3 Max Kills in Single Turn 3 | 1 3 2 1 1 Gunslinging . | . . . . . Exploded 2 | . 2 1 . . Melee 1 | . . . 1 . Uniques/NPCs Destroyed . | . . . . . Combat | -11 -10 -9 -8 -7 -------- Run | Yrd Mat Mat Mat Fac Hostile Shots Fired 626 | 5 49 90 196 286 Missed 173 | 2 16 28 49 78 Damage Taken 6654 | 32 405 711 2376 3130 Core 1234 | 12 52 122 339 709 Absorbed by Shields . | . . . . . Redirected to Shielding 102 | . . 18 58 26 Core Remaining (%) 69 | 95 74 69 38 . Volleys Fired 218 | 4 24 33 80 77 Largest 3 | 2 2 3 3 3 Hottest 158 | 40 65 95 144 158 Shots Fired 447 | 8 45 87 163 144 Gun 316 | 8 38 81 94 95 Cannon 116 | . . . 69 47 Launcher 15 | . 7 6 . 2 Special . | . . . . . Kinetic 280 | 8 24 54 136 58 Thermal 73 | . . . . 73 Explosive 13 | . 7 6 . . Electromagnetic 81 | . 14 27 27 13 Robot Hit Streak 14 | 4 8 6 14 11 Robot Miss Streak 11 | 1 5 4 6 11 Penetration Max 1 | . . . . 1 Secondary Targets 5 | . . 4 1 . Max Gunslinging Chain 1 | . . 1 1 . Shots Hit Robots 281 | 7 23 50 97 104 Core Hits 176 | 2 16 21 70 67 Critical Kills . | . . . . . Critical Parts Destroyed 1 | . . . 1 . Critical Strikes 5 | . . . 3 2 Burn 2 | . . . . 2 Destroy 1 | . . . 1 . Blast 1 | . . . 1 . Corrupt 1 | . . . 1 . Melee Attacks . | . . . . . Impact . | . . . . . Slashing . | . . . . . Piercing . | . . . . . Sneak Attacks . | . . . . . Combat Hostiles . | . . . . . Follow-up Attacks . | . . . . . Damage Inflicted 5531 | 86 742 679 1893 2131 Guns 2739 | 86 232 570 680 1171 Cannons 1861 | . . . 1180 681 Explosions 869 | . 508 93 . 268 Melee . | . . . . . Ramming 62 | . 2 16 33 11 Kinetic 2903 | 86 153 393 1447 824 Thermal 955 | . 80 . . 875 Explosive 744 | . 428 93 . 223 Electromagnetic 867 | . 79 177 413 198 Impact . | . . . . . Slashing . | . . . . . Piercing . | . . . . . Highest Corruption 5 | . . . . 5 Average Corruption 4 | . . . . 4 Corruption Purged . | . . . . . Corruption Blocked . | . . . . . Effects 19 | . . . . 19 Message Errors 3 | . . . . 3 Matter Fused 6 | . . . . 6 Energy Discharges 4 | . . . . 4 Data Loss (minor) 1 | . . . . 1 Data Loss (major) 1 | . . . . 1 Misfires 1 | . . . . 1 Alerts 3 | . . . . 3 Overload Shots . | . . . . . Overflow Damage 13 | . 1 . 12 . Projectiles 12 | . . . 12 . Explosions 1 | . 1 . . . Melee . | . . . . . Knockbacks 33 | . . . 17 16 Impact . | . . . . . Kinetic 30 | . . . 16 14 Secondary 3 | . . . 1 2 Self-Inflicted Damage 233 | . 28 12 . 193 Shots 4 | . 1 1 . 2 Rammed 16 | . . . 9 7 Targets Rammed 25 | . 1 2 14 8 Kicked 9 | . 1 2 5 1 Crushed . | . . . . . Highest Temperature 439 | . 3 78 324 439 Average Temperature 123 | . 2 22 134 136 Received Heat Transfer 2316 | 18 147 210 693 1248 Effects 10 | . . . 1 9 Shutdowns 1 | . . . . 1 Energy Bleed 2 | . . . . 2 Interference 3 | . . . . 3 Matter Decay 2 | . . . . 2 Short Circuit 1 | . . . 1 . Damage (minor) 1 | . . . . 1 Siege Activations . | . . . . . Robots Corrupted . | . . . . . Combat Hostiles . | . . . . . Parts Fried . | . . . . . Impact Corruptions . | . . . . . Robots Melted . | . . . . . Combat Hostiles . | . . . . . Parts Melted 6 | . . . . 6 Heat Transferred 2370 | . 150 . . 2220 Parts Sabotaged . | . . . . . Parts Stolen . | . . . . . Parts Stripped . | . . . . . Power Chain Reactions 1 | . 1 . . . Alert | -11 -10 -9 -8 -7 ------- Run | Yrd Mat Mat Mat Fac Peak Influence 426 | 20 256 314 220 426 Initial 85 | . 13 50 85 63 Average 138 | 3 104 153 100 183 Maximum Alert Level 2 | . 1 1 1 2 Low Security (%) 77 | 100 88 64 94 66 Level 1 18 | . 11 35 5 21 Level 2 4 | . . . . 12 Level 3 . | . . . . . Level 4 . | . . . . . Level 5 . | . . . . . High Security . | . . . . . Max Security . | . . . . . Squads Dispatched 16 | . . 1 4 11 Investigation 3 | . . . . 3 Extermination 1 | . . . . 1 Reinforcement 4 | . . 1 2 1 Assault . | . . . . . Garrison 8 | . . . 2 6 Intercept . | . . . . . Searches Triggered . | . . . . . Construction Impeded 1 | . . . . 1 Haulers Reinforced . | . . . . . Active Scanning Responses . | . . . . . Cargo Convoy Interrupts . | . . . . . Stealth | -11 -10 -9 -8 -7 --------- Run | Yrd Mat Mat Mat Fac Distress Signals 6 | . 1 . 5 . Communications Jammed 3 | . . . . 3 Distress Signals 3 | . . . . 3 Times Spotted 83 | 1 11 16 29 26 Peak Tracking Total 5 | 1 4 4 4 5 Tactical Retreats 2 | . . 1 . 1 Traps | -11 -10 -9 -8 -7 ------- Run | Yrd Mat Mat Mat Fac Traps Triggered 4 | . . . 1 3 Indirectly . | . . . . . Trap Hack Attempts . | . . . . . Triggered . | . . . . . Disarmed . | . . . . . Reprogrammed . | . . . . . Reused . | . . . . . Traps Extracted . | . . . . . Installed . | . . . . . Triggered . | . . . . . Machines | -11 -10 -9 -8 -7 ---------- Run | Yrd Mat Mat Mat Fac Machines Disabled 14 | . 1 2 2 9 Max in Single Turn 4 | . 1 1 1 4 Garrison Access 1 | . . . . 1 Machines Repaired . | . . . . . Machines Dismantled . | . . . . . Machines Sabotaged . | . . . . . Overloaded Fab Kills . | . . . . . Hacking | -11 -10 -9 -8 -7 --------- Run | Yrd Mat Mat Mat Fac Machines Accessed 14 | . 2 4 4 4 Terminals 11 | . 2 3 3 3 Fabricators . | . . . . . Repair Stations . | . . . . . Recycling Units . | . . . . . Scanalyzers 2 | . . 1 1 . Garrison Access 1 | . . . . 1 Total Hacks 28 | . 5 6 8 9 Successful 15 | . 5 5 3 2 Failed 13 | . . 1 5 7 Catastrophic 4 | . . . 1 3 Database Lockouts . | . . . . . Manual 3 | . 1 1 1 . Terminals 22 | . 5 4 6 7 Fabricators . | . . . . . Repair Stations . | . . . . . Recycling Units . | . . . . . Scanalyzers 4 | . . 2 2 . Garrison Access 2 | . . . . 2 Terminal Hacks 10 | . 5 3 1 1 Record 5 | . 3 2 . . Alert Level 2 | . 1 1 . . Unreport Threat 3 | . 1 . 1 1 Fabricator Hacks . | . . . . . Repair Station Hacks . | . . . . . Recycling Unit Hacks . | . . . . . Scanalyzer 4 | . . 2 2 . Insert Component 2 | . . 1 1 . Analyze 2 | . . 1 1 . Garrison Access Hacks 1 | . . . . 1 Seal Access 1 | . . . . 1 Unauthorized Hacks . | . . . . . Terminals . | . . . . . Fabricators . | . . . . . Repair Stations . | . . . . . Recycling Units . | . . . . . Scanalyzers . | . . . . . Garrison Access . | . . . . . Data Cores Recovered 1 | . . . . 1 Used . | . . . . . Hacking Detections 11 | . 2 3 3 3 Full Trace Events 3 | . . . 1 2 Feedback Events . | . . . . . Feedback Blocked . | . . . . . Robot Schematics Acquired . | . . . . . Robots Built . | . . . . . Authchips . | . . . . . Time . | . . . . . Total Robot Build Rating . | . . . . . Part Schematics Acquired 2 | . . 1 1 . Parts Built . | . . . . . Authchips . | . . . . . Time . | . . . . . Total Part Build Rating . | . . . . . Parts Repaired . | . . . . . Time . | . . . . . Parts Recycled . | . . . . . Recycled Matter . | . . . . . Retrieved Matter . | . . . . . Retrieved Components . | . . . . . Parts Scanalyzed 2 | . . 1 1 . Part Schematics Acquired 2 | . . 1 1 . Parts Damaged . | . . . . . Bothacking | -11 -10 -9 -8 -7 ------------ Run | Yrd Mat Mat Mat Fac Used RIF Installer . | . . . . . Robots Hacked . | . . . . . Non-combat . | . . . . . Combat . | . . . . . Robot Hacks Applied . | . . . . . Relay Couplers Released . | . . . . . Fabnet Peak Effective % . | . . . . . Robots Rewired . | . . . . . Allies Hacked . | . . . . . Hacks Repelled . | . . . . . Allies | -11 -10 -9 -8 -7 -------- Run | Yrd Mat Mat Mat Fac Total Allies . | . . . . . Largest Group . | . . . . . Highest-Rated Group . | . . . . . Highest-Rated Ally . | . . . . . Total Orders . | . . . . . Ally Attacks . | . . . . . Total Damage . | . . . . . Kills . | . . . . . Allies Corrupted . | . . . . . Allies Melted . | . . . . . Intel | -11 -10 -9 -8 -7 ------- Run | Yrd Mat Mat Mat Fac Robot Analysis Total . | . . . . . Derelict Logs Recovered . | . . . . . Drone Launches . | . . . . . Drone Recoveries . | . . . . . Exploration | -11 -10 -9 -8 -7 ------------- Run | Yrd Mat Mat Mat Fac Turns Passed 3242 | 82 353 715 976 1116 Spaces Moved 1444 | 59 209 295 423 458 Core 76 | 21 . 28 . 27 Treads 554 | . . 92 185 277 Legs 737 | 38 209 135 238 117 Wheels . | . . . . . Hover . | . . . . . Flight 77 | . . 40 . 37 Fastest Speed 50 | 50 120 145 125 120 Average Speed 164 | 95 126 192 156 181 Slowest Speed 500 | 120 190 350 225 500 Overloaded Moves . | . . . . . Propulsion Burnouts . | . . . . . Robots Hopped . | . . . . . Cave-ins Triggered . | . . . . . Exploration Rate (%) 26 | 5 38 29 48 12 Regions Visited 4 Branch Regions . Pre-discovered Areas . | . . . . . Known Exits Taken . | . . . . . Unknown Exits Taken 4 | 1 1 1 1 . Scrap Searched . | . . . . . Spaces Dug . | . . . . . Terrain Destroyed 122 | . 35 44 4 39 Melee . | . . . . . Projectile 5 | . . . 4 1 AOE 117 | . 35 44 . 38 Terrain Rammed . | . . . . . Walls Destroyed . | . . . . . Machines Disabled . | . . . . . Actions | -11 -10 -9 -8 -7 --------- Run | Yrd Mat Mat Mat Fac Total 1904 | 77 253 371 596 607 Wait 21 | . . . 14 7 Move 1440 | 58 208 294 422 458 Hop . | . . . . . Pick Up 85 | 9 9 20 23 24 Fast Attach . | . . . . . Attach 69 | 6 4 11 23 25 Detach 4 | . . . 4 . Swap 18 | . 2 6 7 3 Drop 24 | . 5 5 9 5 Fire 218 | 4 24 33 80 77 Melee . | . . . . . Ram 7 | . . . . 7 Kick 9 | . 1 2 5 1 Crush 9 | . . . 9 . Escape Stasis . | . . . . . Rewire . | . . . . . Trap . | . . . . . Miscellaneous . | . . . . . Route ------- -11/Scrapyard -10/Materials -9/Materials -8/Materials -7/Factory History --------- Turn | Location | Event 2 | -11/Scrapyard | Met Revision 17 52 | -11/Scrapyard | Discovered new exit (range 8) 83 | -11/Scrapyard | Entered Materials 313 | -10/Materials | Build established: Mutant 353 | -10/Materials | Discovered new exit (range 12) 436 | -10/Materials | Entered another Materials area 436 | -9/Materials | Evolved 2 slots: Utility x1, Weapon x1 750 | -9/Materials | Build established: Tank 766 | -9/Materials | Lost 5 parts (1p2n2w) 967 | -9/Materials | Discovered new exit (range 14) 1151 | -9/Materials | Entered another Materials area 1151 | -8/Materials | Evolved 2 slots: Power x1, Utility x1 1476 | -8/Materials | Lost 5 parts (1p2n2w) 1610 | -8/Materials | Lost 4 parts (1n1u2w) 1733 | -8/Materials | Core integrity fell below 50% 1935 | -8/Materials | Garrison activated, responded to threat 2068 | -8/Materials | Discovered new exit (range 9) 2127 | -8/Materials | Entered Factory 2127 | -7/Factory | Evolved 2 slots: Propulsion x2 2218 | -7/Factory | Garrison activated, responded to threat 2221 | -7/Factory | Garrison activated, responded to threat 2318 | -7/Factory | Lost 5 parts (1p2n1u1w) 2396 | -7/Factory | Lost 7 parts (1p2n4w) 3065 | -7/Factory | Lost 3 parts (1p2n) 3166 | -7/Factory | Core integrity fell below 50% 3202 | -7/Factory | Core integrity fell below 20% 3226 | -7/Factory | Lost 7 parts (1p2n3u1w) 3243 | -7/Factory | Destroyed by G-47 Trooper with Particle Gun Last Messages --------------- F014. Dispatching Investigation squad. 03211_ ALERT: Rogue bot located, Programmers report to Factory Zone 4M. 03222_ A derelict emerges from the shadows: "What are you doing here, didn't you get that announcement? It sounds like they're after you!" 03223_ OA-8FK(g): "I have no idea how they do it but extermination squads are basically impossible to shake, this is bad..." 03224_ OA-8FK(g): "Maybe since they're already in the area we're better off sticking together. Just don't get me killed when they show up, yeah?" 03225_ System corrupted: Matter fused (-9). 03239_ Acquired Shock Rifle. 03240_ K-01 Serf cleans the Subcomponent Replicator. [Achievement: First Step to Greatness] [Achievement: 5k Club] Map ----- +----------------------------------------------------+ | ?????????????????????????????????????????????????? | | ?????????????????????????????????????????????????? | | ?????????????????????????????????????????????????? | | ?????????????????????????????????????????????????? | | ?????????????????????????????????????????????????? | | ?????????????????????????????????????????????????? | | ?????????????????????????????????????????????????? | | ?????????????????????????????????????????????????? | | ?????????????????????????????????????????????????? | | ?????????????????????????????????????????????????? | | ?????????????????????????????????????????????????? | | ???????????????????????????????? ??????????????? | | ???????????????????????????????? #?????????????? | | ???????????????????????????????? #?????????????? | | ???????????????????????????????? #?????????????? | | ???????????????????????????????# +?????????????? | | ???????????????????????????????# #?????????????? | | ???????????????????????????????# #?????????????? | | ????????????????????????######## #?????????????? | | ??????????????????????### # #? ???????????? | | ??????????????????????? + "" # #? ???????????? | | ????????????????????????# "" # #? ""?????????? | | ????????????????????????# k""" # #? ""?????????? | | ????????????????????????# """ # #? ?????????? | | ????????????????????????# """ # #? ?????????? | | ????????????????????????#@ g r#? ?????????? | | ????????????????????????# "" # #? ?????????? | | ????????????????????????# "" # #?#+#?????????? | | ????????????????????????# """ # #?# #####?##??? | | ????????????????????????# """ # #?# # #??? | | ????????????????????????# """ # #?# # """ #??? | | ????????????????????????# # #?# # """ #??? | | ????????????????????????######## ### # """ #??? | | ????????????????????# ##### ## # #??? | | ????????????????????# ## # """ #??? | | ????????????????????# T %+ """ #??? | | ????????????????????# ## #%""" #??? | | ????????????????????# ##### ##%# % #??? | | ????????????????????### #?????######## # = #??? | | ??????????????????????#?????##########+########??? | | ??????????????????????# ????# #???????? | | ??????????????????????# ????# " " " #???????? | | ??????????????????? ??# ????# " " " #???????? | | ???????????????????? ?# ##### " " " #???????? | | ???????????????????? ?# # " " " #???????? | | ????????????????????? # # = " " " #???????? | | ????????????????????? # + " " " #???????? | | ??????????????????????+ # " " " #???????? | | ??????????????????????# # " " " " " #???????? | | ??????????????????????# # "R" " " " #???????? | +----------------------------------------------------+ Best States ------------- Heat Dissipation 48 Energy Generation 23 Energy Capacity 515 Matter Stores 350 Matter Capacity 350 Sight Range 16 Terrain Scan Density 10 Jamming Range 12 Armor Coverage 225 Core Shielding 20 Evasion (%) 55 Targeting Accuracy 6 Recoil Reduction 7 Item Schematics ----------------- EM Pulse Gun | -9/Materials | Scanalyzed Adv. Treads | -8/Materials | Scanalyzed Robot Schematics ------------------ None Fabricated ------------ Nothing Alien Tech Used ----------------- None Achievements -------------- 5k Club Crack Shot Everything Is Under Control First Step to Greatness Fist Fight Made in Tau Ceti IV No Signal One Hack Too Far Please Form A Line Risk Taker Storm Trooper Troublemaker Uninvited Guest Challenges ------------ None Game ------ Seed SignalHeavyAccelerator Manual? 0 Play Time 00:53:05 Cumulative 0.8 hours Start 2024.04.10 @ 10:43:09 End 2024.04.10 @ 11:38:20 Sessions 1 Manual Loads 0 Difficulty Rogue Special Mode None Game No. 1 Rogue 1 Adventurer 0 Explorer 0 Win Type - Total 0 Types 0/0/0/0/0/0/0/0/0 Lore% 0 Gallery% 4 Achievement% 5 Wizard Run 0 Options --------- Layout 1 ASCII 0 Keyboard 0 Movement Numpad Keybinds 0 Fullscreen 1 Font 24/Smallcaps Map View 50x35 Zoom Use 0% Tactical HUD 1 Map Filters NONE Filters NONE Steam 1 RUN: f6573de3-db76-4d81-86b0-00bc6ca89857